[Event "Titled Tuesday Blitz June 14 Late 2022"]
[White "Girsh, Daniel"]
[Black "Rosen, Eric"]
[WhiteFideId "30949190"]
[BlackFideId "2032562"]
[WhiteElo "2506"]
[BlackElo "2362"]
[Result "0-1"]
[Round "04"]
[TimeControl "180+1"]
[Date "2022.06.15"]
[WhiteClock "0:00:08"]
[BlackClock "0:00:07"]

1. e4 {[%clk 0:03:00]}  c5 {[%clk 0:02:53]} 2. Nf3 {[%clk 0:03:00]}  Nc6 {[%clk 0:02:48]} 3. Bb5 {[%clk 0:02:59]}  e6 {[%clk 0:02:48]} 4. O-O {[%clk 0:02:57]}  Nge7 {[%clk 0:02:48]} 5. Re1 {[%clk 0:02:55]}  a6 {[%clk 0:02:49]} 6. Bxc6 {[%clk 0:02:53]}  Nxc6 {[%clk 0:02:49]} 7. d4 {[%clk 0:02:54]}  cxd4 {[%clk 0:02:50]} 8. Nxd4 {[%clk 0:02:54]}  Qc7 {[%clk 0:02:50]} 9. Nc3 {[%clk 0:02:53]}  Bd6 {[%clk 0:02:43]} 10. h3 {[%clk 0:02:48]}  Nxd4 {[%clk 0:02:41]} 11. Qxd4 {[%clk 0:02:47]}  Be5 {[%clk 0:02:41]} 12. Qd3 {[%clk 0:02:46]}  b5 {[%clk 0:02:35]} 13. a3 {[%clk 0:02:33]}  Bb7 {[%clk 0:02:30]} 14. Bd2 {[%clk 0:02:30]}  O-O {[%clk 0:02:29]} 15. Rad1 {[%clk 0:02:29]}  Rac8 {[%clk 0:02:25]} 16. Re3 {[%clk 0:02:11]}  Rfd8 {[%clk 0:01:53]} 17. Ree1 {[%clk 0:02:08]}  h6 {[%clk 0:01:48]} 18. g3 {[%clk 0:02:06]}  Qc5 {[%clk 0:01:43]} 19. Be3 {[%clk 0:02:02]}  Qc4 {[%clk 0:01:42]} 20. Bd4 {[%clk 0:01:52]}  Bxd4 {[%clk 0:01:13]} 21. Qxd4 {[%clk 0:01:52]}  d6 {[%clk 0:01:12]} 22. Re3 {[%clk 0:01:48]}  Qxd4 {[%clk 0:01:10]} 23. Rxd4 {[%clk 0:01:48]}  Kf8 {[%clk 0:01:10]} 24. f3 {[%clk 0:01:43]}  Ke7 {[%clk 0:01:10]} 25. Kf2 {[%clk 0:01:43]}  Rc7 {[%clk 0:01:09]} 26. Rd2 {[%clk 0:01:42]}  Rc4 {[%clk 0:00:55]} 27. Red3 {[%clk 0:01:42]}  b4 {[%clk 0:00:50]} 28. axb4 {[%clk 0:01:41]}  Rxb4 {[%clk 0:00:51]} 29. b3 {[%clk 0:01:42]}  a5 {[%clk 0:00:48]} 30. Ke3 {[%clk 0:01:37]}  Ba6 {[%clk 0:00:29]} 31. Rd4 {[%clk 0:01:37]}  Rxd4 {[%clk 0:00:30]} 32. Rxd4 {[%clk 0:01:37]}  Rc8 {[%clk 0:00:30]} 33. Kd2 {[%clk 0:01:35]}  g5 {[%clk 0:00:19]} 34. Ra4 {[%clk 0:01:29]}  Rc5 {[%clk 0:00:20]} 35. Nd1 {[%clk 0:01:24]}  Bf1 {[%clk 0:00:19]} 36. Nf2 {[%clk 0:01:20]}  Bg2 {[%clk 0:00:18]} 37. f4 {[%clk 0:01:17]}  gxf4 {[%clk 0:00:17]} 38. gxf4 {[%clk 0:01:18]}  Rh5 {[%clk 0:00:17]} 39. Nd3 {[%clk 0:01:14]}  Rxh3 {[%clk 0:00:13]} 40. e5 {[%clk 0:01:08]}  Rh2 {[%clk 0:00:08]} 41. Kc3 {[%clk 0:01:02]}  dxe5 {[%clk 0:00:03]} 42. fxe5 {[%clk 0:01:01]}  h5 {[%clk 0:00:03]} 43. Rxa5 {[%clk 0:01:01]}  h4 {[%clk 0:00:04]} 44. Ra8 {[%clk 0:00:55]}  h3 {[%clk 0:00:03]} 45. Rh8 {[%clk 0:00:54]}  Rh1 {[%clk 0:00:04]} 46. Nf4 {[%clk 0:00:52]}  Re1 {[%clk 0:00:03]} 47. Rh5 {[%clk 0:00:42]}  Re3+ {[%clk 0:00:03]} 48. Kd2 {[%clk 0:00:40]}  Rf3 {[%clk 0:00:03]} 49. Nd3 {[%clk 0:00:33]}  Rg3 {[%clk 0:00:03]} 50. b4 {[%clk 0:00:32]}  Bd5 {[%clk 0:00:02]} 51. b5 {[%clk 0:00:31]}  Rg2+ {[%clk 0:00:03]} 52. Kc3 {[%clk 0:00:29]}  h2 {[%clk 0:00:03]} 53. b6 {[%clk 0:00:26]}  Re2 {[%clk 0:00:02]} 54. Nc1 {[%clk 0:00:12]}  h1=Q {[%clk 0:00:02]} 55. Rxh1 {[%clk 0:00:11]}  Re3+ {[%clk 0:00:01]} 56. Kd4 {[%clk 0:00:10]}  Re4+ {[%clk 0:00:02]} 57. Kd3 {[%clk 0:00:10]}  Rxe5 {[%clk 0:00:02]} 58. Rh8 {[%clk 0:00:09]}  Kd7 {[%clk 0:00:02]} 59. Nb3 {[%clk 0:00:08]}  Kc6 {[%clk 0:00:02]} 60. Rb8 {[%clk 0:00:07]}  Rh5 {[%clk 0:00:02]} 61. Nd4+ {[%clk 0:00:07]}  Kd6 {[%clk 0:00:02]} 62. b7 {[%clk 0:00:08]}  Kc7 {[%clk 0:00:02]} 63. Rf8 {[%clk 0:00:08]}  Kxb7 {[%clk 0:00:02]} 64. Rxf7+ {[%clk 0:00:09]}  Kb6 {[%clk 0:00:03]} 65. Rf6 {[%clk 0:00:09]}  Re5 {[%clk 0:00:02]} 66. c3 {[%clk 0:00:09]}  Kc5 {[%clk 0:00:02]} 67. Nc2 {[%clk 0:00:07]}  Bc4+ {[%clk 0:00:02]} 68. Kd2 {[%clk 0:00:07]}  Re2+ {[%clk 0:00:03]} 69. Kd1 {[%clk 0:00:07]}  Rh2 {[%clk 0:00:03]} 70. Ne3 {[%clk 0:00:08]}  Bb3+ {[%clk 0:00:03]} 71. Ke1 {[%clk 0:00:07]}  Ra2 {[%clk 0:00:03]} 72. Rf4 {[%clk 0:00:06]}  Kd6 {[%clk 0:00:02]} 73. Rd4+ {[%clk 0:00:06]}  Ke5 {[%clk 0:00:02]} 74. Rb4 {[%clk 0:00:07]}  Bc2 {[%clk 0:00:01]} 75. Nxc2 {[%clk 0:00:07]}  Rxc2 {[%clk 0:00:02]} 76. Rc4 {[%clk 0:00:06]}  Kd5 {[%clk 0:00:03]} 77. Rd4+ {[%clk 0:00:06]}  Kc5 {[%clk 0:00:03]} 78. Re4 {[%clk 0:00:07]}  Kd5 {[%clk 0:00:03]} 79. Rd4+ {[%clk 0:00:07]}  Ke5 {[%clk 0:00:04]} 80. Rc4 {[%clk 0:00:07]}  Kd6 {[%clk 0:00:03]} 81. Rd4+ {[%clk 0:00:08]}  Kc6 {[%clk 0:00:03]} 82. Rc4+ {[%clk 0:00:08]}  Kd7 {[%clk 0:00:04]} 83. Rd4+ {[%clk 0:00:09]}  Ke7 {[%clk 0:00:04]} 84. Kd1 {[%clk 0:00:09]}  Rxc3 {[%clk 0:00:04]} 85. Kd2 {[%clk 0:00:09]}  Ra3 {[%clk 0:00:05]} 86. Rd3 {[%clk 0:00:08]}  Ra4 {[%clk 0:00:04]} 87. Ke3 {[%clk 0:00:08]}  Kf6 {[%clk 0:00:05]} 88. Rd1 {[%clk 0:00:08]}  Rh4 {[%clk 0:00:05]} 89. Ra1 {[%clk 0:00:07]}  Kf5 {[%clk 0:00:04]} 90. Ra8 {[%clk 0:00:05]}  Rh3+ {[%clk 0:00:04]} 91. Ke2 {[%clk 0:00:05]}  e5 {[%clk 0:00:04]} 92. Ra4 {[%clk 0:00:05]}  Rh2+ {[%clk 0:00:04]} 93. Ke3 {[%clk 0:00:05]}  Rh3+ {[%clk 0:00:05]} 94. Ke2 {[%clk 0:00:05]}  Rb3 {[%clk 0:00:05]} 95. Kf2 {[%clk 0:00:05]}  Rb7 {[%clk 0:00:05]} 96. Ke2 {[%clk 0:00:06]}  Rf7 {[%clk 0:00:06]} 97. Ke3 {[%clk 0:00:06]}  Rh7 {[%clk 0:00:06]} 98. Ke2 {[%clk 0:00:05]}  Rh1 {[%clk 0:00:06]} 99. Ke3 {[%clk 0:00:06]}  Rh2 {[%clk 0:00:07]} 100. Kf3 {[%clk 0:00:06]}  Ke6 {[%clk 0:00:07]} 101. Ke4 {[%clk 0:00:06]}  Re2+ {[%clk 0:00:07]} 102. Kd3 {[%clk 0:00:05]}  Re1 {[%clk 0:00:07]} 103. Re4 {[%clk 0:00:04]}  Rd1+ {[%clk 0:00:06]} 104. Ke2 {[%clk 0:00:04]}  Ra1 {[%clk 0:00:05]} 105. Ke3 {[%clk 0:00:04]}  Kf5 {[%clk 0:00:04]} 106. Rb4 {[%clk 0:00:04]}  Ra3+ {[%clk 0:00:04]} 107. Kf2 {[%clk 0:00:04]}  Rd3 {[%clk 0:00:03]} 108. Ke2 {[%clk 0:00:04]}  Rh3 {[%clk 0:00:03]} 109. Kf2 {[%clk 0:00:04]}  Rh2+ {[%clk 0:00:02]} 110. Ke3 {[%clk 0:00:04]}  Ra2 {[%clk 0:00:03]} 111. Kf3 {[%clk 0:00:04]}  Ra8 {[%clk 0:00:03]} 112. Ke3 {[%clk 0:00:04]}  Rc8 {[%clk 0:00:04]} 113. Ke2 {[%clk 0:00:05]}  Rc5 {[%clk 0:00:04]} 114. Ke3 {[%clk 0:00:05]}  Ke6 {[%clk 0:00:05]} 115. Ke4 {[%clk 0:00:03]}  Ra5 {[%clk 0:00:05]} 116. Rb6+ {[%clk 0:00:04]}  Ke7 {[%clk 0:00:05]} 117. Kf5 {[%clk 0:00:04]}  Kd7 {[%clk 0:00:04]} 118. Rh6 {[%clk 0:00:03]}  Ke7 {[%clk 0:00:03]} 119. Ke4 {[%clk 0:00:02]}  Kf7 {[%clk 0:00:03]} 120. Kf5 {[%clk 0:00:02]}  Kg7 {[%clk 0:00:03]} 121. Re6 {[%clk 0:00:02]}  e4+ {[%clk 0:00:03]} 122. Kxe4 {[%clk 0:00:02]}  Ra1 {[%clk 0:00:03]} 123. Re5 {[%clk 0:00:03]}  Kf6 {[%clk 0:00:03]} 124. Kf4 {[%clk 0:00:04]}  Rf1+ {[%clk 0:00:03]} 125. Ke3 {[%clk 0:00:04]}  Re1+ {[%clk 0:00:04]} 126. Kd4 {[%clk 0:00:04]}  Rxe5 {[%clk 0:00:04]} 127. Kd3 {[%clk 0:00:05]}  Ke6 {[%clk 0:00:05]} 128. Kd4 {[%clk 0:00:05]}  Kd6 {[%clk 0:00:05]} 129. Kd3 {[%clk 0:00:06]}  Re6 {[%clk 0:00:06]} 130. Kc3 {[%clk 0:00:07]}  Kc5 {[%clk 0:00:06]} 131. Kb3 {[%clk 0:00:07]}  Re3+ {[%clk 0:00:06]} 132. Ka4 {[%clk 0:00:07]}  Rf3 {[%clk 0:00:06]} 133. Ka5 {[%clk 0:00:08]}  Ra3# {[%clk 0:00:07]} 0-1


[Site "https://www.chess.com"]

[Event "Titled Tuesday Blitz June 14 Late 2022"]
[White "Guz, Ari"]
[Black "Sarana, Alexey"]
[WhiteFideId "2825759"]
[BlackFideId "24133795"]
[WhiteElo "1913"]
[BlackElo "2666"]
[Result "0-1"]
[Round "04"]
[TimeControl "180+1"]
[Date "2022.06.14"]
[WhiteClock "0:00:17"]
[BlackClock "0:01:05"]

1. Nf3 {[%clk 0:03:00]}  d5 {[%clk 0:02:50]} 2. b3 {[%clk 0:03:00]}  c5 {[%clk 0:02:49]} 3. Bb2 {[%clk 0:03:00]}  Nc6 {[%clk 0:02:47]} 4. e3 {[%clk 0:03:01]}  a6 {[%clk 0:02:47]} 5. d4 {[%clk 0:03:01]}  cxd4 {[%clk 0:02:47]} 6. exd4 {[%clk 0:03:00]}  Bg4 {[%clk 0:02:47]} 7. Be2 {[%clk 0:02:57]}  e6 {[%clk 0:02:47]} 8. Nbd2 {[%clk 0:02:56]}  Nf6 {[%clk 0:02:48]} 9. O-O {[%clk 0:02:57]}  Bd6 {[%clk 0:02:48]} 10. Ne5 {[%clk 0:02:57]}  Bxe2 {[%clk 0:02:47]} 11. Qxe2 {[%clk 0:02:57]}  Qc7 {[%clk 0:02:47]} 12. Ndf3 {[%clk 0:02:57]}  O-O {[%clk 0:02:47]} 13. c4 {[%clk 0:02:56]}  Rac8 {[%clk 0:02:46]} 14. Rac1 {[%clk 0:02:51]}  dxc4 {[%clk 0:02:41]} 15. Rxc4 {[%clk 0:02:45]}  Qb6 {[%clk 0:02:34]} 16. Rfc1 {[%clk 0:02:40]}  Ne7 {[%clk 0:02:31]} 17. h3 {[%clk 0:02:25]}  Qb5 {[%clk 0:02:30]} 18. Qc2 {[%clk 0:02:15]}  Rcd8 {[%clk 0:02:26]} 19. Qd2 {[%clk 0:01:26]}  Qd5 {[%clk 0:02:23]} 20. Qe2 {[%clk 0:01:15]}  Qe4 {[%clk 0:02:15]} 21. Qxe4 {[%clk 0:01:09]}  Nxe4 {[%clk 0:02:16]} 22. R4c2 {[%clk 0:01:09]}  Nd5 {[%clk 0:02:16]} 23. Nc4 {[%clk 0:01:07]}  Bf4 {[%clk 0:02:13]} 24. Re1 {[%clk 0:01:06]}  Nd6 {[%clk 0:02:13]} 25. a3 {[%clk 0:01:03]}  Rc8 {[%clk 0:02:09]} 26. g3 {[%clk 0:01:00]}  Bh6 {[%clk 0:02:03]} 27. Ree2 {[%clk 0:00:53]}  Nb5 {[%clk 0:01:39]} 28. Nce5 {[%clk 0:00:46]}  g6 {[%clk 0:01:33]} 29. Nd7 {[%clk 0:00:43]}  Rfd8 {[%clk 0:01:32]} 30. Nc5 {[%clk 0:00:43]}  Rc7 {[%clk 0:01:29]} 31. a4 {[%clk 0:00:39]}  Nd6 {[%clk 0:01:29]} 32. Ba3 {[%clk 0:00:38]}  Rdc8 {[%clk 0:01:27]} 33. Ra2 {[%clk 0:00:31]}  Nf5 {[%clk 0:01:17]} 34. Ra1 {[%clk 0:00:27]}  Bg7 {[%clk 0:01:15]} 35. Bb2 {[%clk 0:00:23]}  Nxd4 {[%clk 0:01:06]} 36. Bxd4 {[%clk 0:00:18]}  Bxd4 {[%clk 0:01:06]} 37. Nxd4 {[%clk 0:00:19]}  Rxc5 {[%clk 0:01:06]} 38. b4 {[%clk 0:00:17]}  Rc4 {[%clk 0:01:05]} 0-1


[Site "https://www.chess.com"]

[Event "Titled Tuesday Blitz June 14 Late 2022"]
[White "Guzman, Christopher"]
[Black "Rios Escobar, Adan"]
[WhiteFideId "6405096"]
[BlackFideId "3403645"]
[WhiteElo "2244"]
[BlackElo "2443"]
[Result "1-0"]
[Round "04"]
[TimeControl "180+1"]
[Date "2022.06.15"]
[WhiteClock "0:01:29"]
[BlackClock "0:00:07"]

1. e4 {[%clk 0:03:00]}  c5 {[%clk 0:02:59]} 2. Nf3 {[%clk 0:03:00]}  d6 {[%clk 0:02:59]} 3. d4 {[%clk 0:03:01]}  cxd4 {[%clk 0:02:59]} 4. Nxd4 {[%clk 0:03:02]}  Nf6 {[%clk 0:03:00]} 5. Nc3 {[%clk 0:03:02]}  a6 {[%clk 0:03:01]} 6. h4 {[%clk 0:03:02]}  e5 {[%clk 0:02:55]} 7. Nb3 {[%clk 0:03:02]}  Be6 {[%clk 0:02:54]} 8. f4 {[%clk 0:03:02]}  b5 {[%clk 0:02:48]} 9. f5 {[%clk 0:02:59]}  Bc8 {[%clk 0:02:48]} 10. a3 {[%clk 0:02:57]}  Bb7 {[%clk 0:02:48]} 11. Bd3 {[%clk 0:02:56]}  h5 {[%clk 0:02:30]} 12. Bg5 {[%clk 0:02:56]}  Be7 {[%clk 0:02:30]} 13. Qe2 {[%clk 0:02:55]}  Nbd7 {[%clk 0:02:26]} 14. O-O-O {[%clk 0:02:55]}  Rc8 {[%clk 0:02:26]} 15. Kb1 {[%clk 0:02:54]}  Qc7 {[%clk 0:02:25]} 16. Ka1 {[%clk 0:02:27]}  Nc5 {[%clk 0:02:21]} 17. Bxf6 {[%clk 0:02:23]}  Bxf6 {[%clk 0:02:14]} 18. Bxb5+ {[%clk 0:02:21]}  axb5 {[%clk 0:02:12]} 19. Nxb5 {[%clk 0:02:22]}  Nxb3+ {[%clk 0:02:07]} 20. cxb3 {[%clk 0:02:21]}  Qc2 {[%clk 0:02:00]} 21. Nxd6+ {[%clk 0:02:18]}  Kf8 {[%clk 0:01:42]} 22. Qxc2 {[%clk 0:02:13]}  Rxc2 {[%clk 0:01:42]} 23. Nxb7 {[%clk 0:02:13]}  Ke7 {[%clk 0:01:37]} 24. Rc1 {[%clk 0:02:11]}  Rhc8 {[%clk 0:01:31]} 25. Kb1 {[%clk 0:02:09]}  Rxc1+ {[%clk 0:01:17]} 26. Rxc1 {[%clk 0:02:10]}  Rxc1+ {[%clk 0:01:07]} 27. Kxc1 {[%clk 0:02:11]}  Bxh4 {[%clk 0:01:08]} 28. b4 {[%clk 0:02:06]}  g5 {[%clk 0:01:08]} 29. fxg6 {[%clk 0:02:00]}  fxg6 {[%clk 0:01:09]} 30. Kd2 {[%clk 0:02:00]}  g5 {[%clk 0:01:07]} 31. a4 {[%clk 0:02:00]}  g4 {[%clk 0:01:06]} 32. Ke2 {[%clk 0:01:59]}  Kd7 {[%clk 0:01:02]} 33. Nc5+ {[%clk 0:01:59]}  Kc6 {[%clk 0:01:01]} 34. Nd3 {[%clk 0:01:59]}  Bg3 {[%clk 0:00:58]} 35. b3 {[%clk 0:01:56]}  h4 {[%clk 0:00:59]} 36. Kf1 {[%clk 0:01:56]}  h3 {[%clk 0:00:57]} 37. Kg1 {[%clk 0:01:47]}  Kb6 {[%clk 0:00:39]} 38. b5 {[%clk 0:01:42]}  Ka5 {[%clk 0:00:31]} 39. Kh1 {[%clk 0:01:42]}  Bf4 {[%clk 0:00:15]} 40. gxh3 {[%clk 0:01:41]}  gxh3 {[%clk 0:00:12]} 41. Kg1 {[%clk 0:01:35]}  Bg3 {[%clk 0:00:11]} 42. Kh1 {[%clk 0:01:34]}  Bf4 {[%clk 0:00:10]} 43. b4+ {[%clk 0:01:33]}  Kb6 {[%clk 0:00:07]} 44. Nxf4 {[%clk 0:01:27]}  exf4 {[%clk 0:00:07]} 45. Kh2 {[%clk 0:01:28]}  f3 {[%clk 0:00:07]} 46. Kxh3 {[%clk 0:01:28]}  f2 {[%clk 0:00:07]} 47. Kg2 {[%clk 0:01:29]} 1-0


[Site "https://www.chess.com"]

[Event "Titled Tuesday Blitz June 14 Late 2022"]
[White "Horcajuelo Rocamora, Martin"]
[Black "Gomez Dieguez, David"]
[WhiteFideId "24573027"]
[BlackFideId "22223630"]
[WhiteElo "1822"]
[BlackElo "2117"]
[Result "1-0"]
[Round "04"]
[TimeControl "180+1"]
[Date "2022.06.15"]
[WhiteClock "0:00:18"]
[BlackClock "0:00:08"]

1. e4 {[%clk 0:01:04]}  c6 {[%clk 0:02:58]} 2. Nf3 {[%clk 0:01:01]}  d5 {[%clk 0:02:59]} 3. exd5 {[%clk 0:01:01]}  cxd5 {[%clk 0:02:59]} 4. d4 {[%clk 0:01:02]}  Nc6 {[%clk 0:02:59]} 5. Bf4 {[%clk 0:00:58]}  Nf6 {[%clk 0:02:58]} 6. h3 {[%clk 0:00:57]}  Bf5 {[%clk 0:02:58]} 7. Bb5 {[%clk 0:00:56]}  e6 {[%clk 0:02:58]} 8. O-O {[%clk 0:00:55]}  Bd6 {[%clk 0:02:56]} 9. Be5 {[%clk 0:00:53]}  O-O {[%clk 0:02:54]} 10. Re1 {[%clk 0:00:51]}  a6 {[%clk 0:02:48]} 11. Bd3 {[%clk 0:00:50]}  Bxd3 {[%clk 0:02:48]} 12. Qxd3 {[%clk 0:00:51]}  Rc8 {[%clk 0:02:43]} 13. c3 {[%clk 0:00:50]}  b5 {[%clk 0:02:31]} 14. a3 {[%clk 0:00:45]}  Na5 {[%clk 0:02:30]} 15. Nbd2 {[%clk 0:00:45]}  Bxe5 {[%clk 0:02:26]} 16. Nxe5 {[%clk 0:00:44]}  Nc4 {[%clk 0:02:24]} 17. b4 {[%clk 0:00:38]}  Nb2 {[%clk 0:02:19]} 18. Qc2 {[%clk 0:00:32]}  Na4 {[%clk 0:02:20]} 19. Re3 {[%clk 0:00:32]}  Qc7 {[%clk 0:02:06]} 20. Rc1 {[%clk 0:00:24]}  Ne8 {[%clk 0:01:55]} 21. Nb3 {[%clk 0:00:23]}  Nb6 {[%clk 0:01:42]} 22. Nc5 {[%clk 0:00:20]}  Ra8 {[%clk 0:01:38]} 23. Rg3 {[%clk 0:00:19]}  Nf6 {[%clk 0:01:34]} 24. Qe2 {[%clk 0:00:19]}  Nc4 {[%clk 0:01:33]} 25. Qd2 {[%clk 0:00:19]}  Nxa3 {[%clk 0:01:31]} 26. Qg5 {[%clk 0:00:18]}  Ne8 {[%clk 0:01:27]} 27. Qg4 {[%clk 0:00:18]}  f5 {[%clk 0:01:05]} 28. Qf3 {[%clk 0:00:17]}  Rf6 {[%clk 0:00:41]} 29. Re1 {[%clk 0:00:15]}  Nc4 {[%clk 0:00:39]} 30. Nxc4 {[%clk 0:00:14]}  bxc4 {[%clk 0:00:37]} 31. Rxe6 {[%clk 0:00:15]}  a5 {[%clk 0:00:32]} 32. Rxf6 {[%clk 0:00:14]}  Nxf6 {[%clk 0:00:33]} 33. Ne6 {[%clk 0:00:15]}  Qd6 {[%clk 0:00:19]} 34. Nxg7 {[%clk 0:00:15]}  Kh8 {[%clk 0:00:20]} 35. Nxf5 {[%clk 0:00:15]}  Qf8 {[%clk 0:00:19]} 36. bxa5 {[%clk 0:00:14]}  Rxa5 {[%clk 0:00:19]} 37. Nh4 {[%clk 0:00:14]}  Ra1+ {[%clk 0:00:19]} 38. Kh2 {[%clk 0:00:15]}  Nd7 {[%clk 0:00:18]} 39. Qxf8+ {[%clk 0:00:15]}  Nxf8 {[%clk 0:00:19]} 40. Nf5 {[%clk 0:00:15]}  Ne6 {[%clk 0:00:18]} 41. Ne7 {[%clk 0:00:15]}  h5 {[%clk 0:00:16]} 42. Nxd5 {[%clk 0:00:15]}  Ra2 {[%clk 0:00:15]} 43. Nf6 {[%clk 0:00:15]}  Ng7 {[%clk 0:00:14]} 44. Rf3 {[%clk 0:00:15]}  Rc2 {[%clk 0:00:12]} 45. d5 {[%clk 0:00:16]}  Rd2 {[%clk 0:00:12]} 46. Kg3 {[%clk 0:00:14]}  h4+ {[%clk 0:00:08]} 47. Kxh4 {[%clk 0:00:14]}  Rd3 {[%clk 0:00:04]} 48. Rxd3 {[%clk 0:00:12]}  cxd3 {[%clk 0:00:05]} 49. Ne4 {[%clk 0:00:13]}  Nf5+ {[%clk 0:00:05]} 50. Kg5 {[%clk 0:00:14]}  Ne7 {[%clk 0:00:04]} 51. c4 {[%clk 0:00:14]}  Kg7 {[%clk 0:00:03]} 52. Kf4 {[%clk 0:00:15]}  Ng6+ {[%clk 0:00:03]} 53. Ke3 {[%clk 0:00:15]}  Ne5 {[%clk 0:00:03]} 54. c5 {[%clk 0:00:15]}  Kg6 {[%clk 0:00:03]} 55. c6 {[%clk 0:00:15]}  Kf5 {[%clk 0:00:04]} 56. c7 {[%clk 0:00:16]}  Nc4+ {[%clk 0:00:04]} 57. Kxd3 {[%clk 0:00:16]}  Nb2+ {[%clk 0:00:03]} 58. Ke3 {[%clk 0:00:16]}  Ke5 {[%clk 0:00:03]} 59. c8=Q {[%clk 0:00:16]}  Nc4+ {[%clk 0:00:04]} 60. Ke2 {[%clk 0:00:15]}  Nd6 {[%clk 0:00:05]} 61. Qe6+ {[%clk 0:00:15]}  Kd4 {[%clk 0:00:03]} 62. Nxd6 {[%clk 0:00:14]}  Kc5 {[%clk 0:00:03]} 63. Qe3+ {[%clk 0:00:14]}  Kxd5 {[%clk 0:00:03]} 64. Nf5 {[%clk 0:00:14]}  Kc6 {[%clk 0:00:03]} 65. Qd4 {[%clk 0:00:14]}  Kb7 {[%clk 0:00:04]} 66. Qc5 {[%clk 0:00:14]}  Kb8 {[%clk 0:00:04]} 67. Qe7 {[%clk 0:00:14]}  Ka8 {[%clk 0:00:05]} 68. Kd3 {[%clk 0:00:15]}  Kb8 {[%clk 0:00:06]} 69. Kc4 {[%clk 0:00:16]}  Ka8 {[%clk 0:00:06]} 70. Kc5 {[%clk 0:00:17]}  Kb8 {[%clk 0:00:07]} 71. Kb6 {[%clk 0:00:18]}  Ka8 {[%clk 0:00:08]} 72. Qb7# {[%clk 0:00:18]} 1-0


[Site "https://www.chess.com"]

[Event "Titled Tuesday Blitz June 14 Late 2022"]
[White "Janaszak, Dawid"]
[Black "Terry, Renato"]
[WhiteFideId "1119206"]
[BlackFideId "3803457"]
[WhiteElo "2199"]
[BlackElo "2577"]
[Result "1-0"]
[Round "04"]
[TimeControl "180+1"]
[Date "2022.06.14"]
[WhiteClock "0:00:07"]
[BlackClock "0:00:02"]

1. e4 {[%clk 0:03:00]}  e6 {[%clk 0:03:00]} 2. d4 {[%clk 0:03:00]}  d5 {[%clk 0:02:59]} 3. Bd3 {[%clk 0:03:00]}  dxe4 {[%clk 0:02:59]} 4. Bxe4 {[%clk 0:03:01]}  Nf6 {[%clk 0:03:00]} 5. Bf3 {[%clk 0:03:01]}  Nbd7 {[%clk 0:03:00]} 6. Ne2 {[%clk 0:02:59]}  Bd6 {[%clk 0:03:00]} 7. Nbc3 {[%clk 0:02:56]}  c6 {[%clk 0:02:59]} 8. Bf4 {[%clk 0:02:46]}  Bxf4 {[%clk 0:02:57]} 9. Nxf4 {[%clk 0:02:47]}  O-O {[%clk 0:02:57]} 10. O-O {[%clk 0:02:40]}  e5 {[%clk 0:02:58]} 11. dxe5 {[%clk 0:02:39]}  Nxe5 {[%clk 0:02:59]} 12. Re1 {[%clk 0:02:25]}  Qc7 {[%clk 0:02:52]} 13. Nd3 {[%clk 0:02:16]}  Neg4 {[%clk 0:02:34]} 14. g3 {[%clk 0:02:01]}  Bf5 {[%clk 0:02:30]} 15. Bg2 {[%clk 0:01:52]}  Rad8 {[%clk 0:02:29]} 16. Qf3 {[%clk 0:01:51]}  Bxd3 {[%clk 0:02:10]} 17. cxd3 {[%clk 0:01:51]}  Qd6 {[%clk 0:01:36]} 18. Rad1 {[%clk 0:01:12]}  Qd4 {[%clk 0:01:30]} 19. Re7 {[%clk 0:01:03]}  Rd7 {[%clk 0:01:26]} 20. Rxd7 {[%clk 0:01:01]}  Qxd7 {[%clk 0:01:25]} 21. d4 {[%clk 0:00:58]}  Nh6 {[%clk 0:01:12]} 22. d5 {[%clk 0:00:53]}  c5 {[%clk 0:01:12]} 23. d6 {[%clk 0:00:49]}  b6 {[%clk 0:01:13]} 24. Nd5 {[%clk 0:00:47]}  Nxd5 {[%clk 0:00:57]} 25. Qxd5 {[%clk 0:00:46]}  Rd8 {[%clk 0:00:57]} 26. Be4 {[%clk 0:00:36]}  Ng4 {[%clk 0:00:49]} 27. Bc2 {[%clk 0:00:26]}  Nf6 {[%clk 0:00:47]} 28. Qd3 {[%clk 0:00:25]}  b5 {[%clk 0:00:44]} 29. Qc3 {[%clk 0:00:19]}  Qc6 {[%clk 0:00:44]} 30. Qe5 {[%clk 0:00:16]}  c4 {[%clk 0:00:41]} 31. Bf5 {[%clk 0:00:14]}  Re8 {[%clk 0:00:32]} 32. Qd4 {[%clk 0:00:07]}  Qb6 {[%clk 0:00:29]} 33. Qxb6 {[%clk 0:00:06]}  axb6 {[%clk 0:00:30]} 34. d7 {[%clk 0:00:07]}  Rd8 {[%clk 0:00:29]} 35. Rd6 {[%clk 0:00:07]}  Kf8 {[%clk 0:00:02]} 36. Rxb6 {[%clk 0:00:06]}  Ke7 {[%clk 0:00:03]} 37. Rxb5 {[%clk 0:00:06]}  g6 {[%clk 0:00:04]} 38. Bh3 {[%clk 0:00:06]}  h5 {[%clk 0:00:03]} 39. a4 {[%clk 0:00:05]}  Ra8 {[%clk 0:00:02]} 40. a5 {[%clk 0:00:06]}  g5 {[%clk 0:00:02]} 41. Bf5 {[%clk 0:00:05]}  g4 {[%clk 0:00:01]} 42. Kg2 {[%clk 0:00:05]}  Kd8 {[%clk 0:00:01]} 43. f3 {[%clk 0:00:05]}  gxf3+ {[%clk 0:00:01]} 44. Kxf3 {[%clk 0:00:06]}  Ke7 {[%clk 0:00:02]} 45. Kf4 {[%clk 0:00:06]}  c3 {[%clk 0:00:02]} 46. bxc3 {[%clk 0:00:06]}  Rg8 {[%clk 0:00:01]} 47. c4 {[%clk 0:00:06]}  h4 {[%clk 0:00:02]} 48. g4 {[%clk 0:00:06]}  Nh5+ {[%clk 0:00:03]} 49. gxh5 {[%clk 0:00:06]}  Ra8 {[%clk 0:00:03]} 50. Re5+ {[%clk 0:00:05]}  Kd6 {[%clk 0:00:02]} 51. Re8 {[%clk 0:00:06]}  Rxa5 {[%clk 0:00:01]} 52. d8=Q+ {[%clk 0:00:06]}  Kc5 {[%clk 0:00:02]} 53. Qxa5+ {[%clk 0:00:07]} 1-0


[Site "https://www.chess.com"]

[Event "Titled Tuesday Blitz June 14 Late 2022"]
[White "Jobava, Baadur"]
[Black "Mammadova, Gulnar"]
[WhiteFideId "13601520"]
[BlackFideId "13403508"]
[WhiteElo "2617"]
[BlackElo "2255"]
[Result "1-0"]
[Round "04"]
[TimeControl "180+1"]
[Date "2022.06.14"]
[WhiteClock "0:01:42"]
[BlackClock "0:00:06"]

1. g4 {[%clk 0:03:00]}  e5 {[%clk 0:02:58]} 2. Bg2 {[%clk 0:03:01]}  d6 {[%clk 0:02:56]} 3. e3 {[%clk 0:03:00]}  Nc6 {[%clk 0:02:56]} 4. h3 {[%clk 0:03:01]}  g6 {[%clk 0:02:55]} 5. Nc3 {[%clk 0:02:59]}  Bg7 {[%clk 0:02:55]} 6. Nge2 {[%clk 0:03:00]}  Nge7 {[%clk 0:02:55]} 7. d4 {[%clk 0:02:59]}  O-O {[%clk 0:02:52]} 8. d5 {[%clk 0:02:59]}  Nb8 {[%clk 0:02:52]} 9. g5 {[%clk 0:02:58]}  Nd7 {[%clk 0:02:49]} 10. e4 {[%clk 0:02:57]}  f5 {[%clk 0:02:49]} 11. gxf6 {[%clk 0:02:57]}  Nxf6 {[%clk 0:02:49]} 12. Ng3 {[%clk 0:02:56]}  c6 {[%clk 0:02:45]} 13. Bg5 {[%clk 0:02:53]}  cxd5 {[%clk 0:02:38]} 14. Nxd5 {[%clk 0:02:53]}  Nexd5 {[%clk 0:02:24]} 15. exd5 {[%clk 0:02:54]}  Qb6 {[%clk 0:02:22]} 16. O-O {[%clk 0:02:53]}  Bd7 {[%clk 0:02:16]} 17. b3 {[%clk 0:02:50]}  Rae8 {[%clk 0:02:06]} 18. Qd2 {[%clk 0:02:50]}  Qc7 {[%clk 0:01:59]} 19. a4 {[%clk 0:02:49]}  Qc8 {[%clk 0:01:58]} 20. Kh2 {[%clk 0:02:49]}  Rf7 {[%clk 0:01:48]} 21. Be3 {[%clk 0:02:45]}  a6 {[%clk 0:01:43]} 22. c4 {[%clk 0:02:45]}  Ref8 {[%clk 0:01:43]} 23. a5 {[%clk 0:02:43]}  Nh5 {[%clk 0:01:40]} 24. Nxh5 {[%clk 0:02:42]}  gxh5 {[%clk 0:01:41]} 25. Qe2 {[%clk 0:02:37]}  e4 {[%clk 0:01:32]} 26. Qxh5 {[%clk 0:02:33]}  Be5+ {[%clk 0:01:29]} 27. Kh1 {[%clk 0:02:32]}  Rg7 {[%clk 0:01:12]} 28. Bxe4 {[%clk 0:02:26]}  Bxa1 {[%clk 0:01:08]} 29. Rxa1 {[%clk 0:02:25]}  Bxh3 {[%clk 0:00:51]} 30. Bd4 {[%clk 0:02:04]}  Bf5 {[%clk 0:00:37]} 31. Re1 {[%clk 0:01:43]}  Bxe4+ {[%clk 0:00:33]} 32. Rxe4 {[%clk 0:01:44]}  Rg6 {[%clk 0:00:06]} 33. Re7 {[%clk 0:01:42]} 1-0


[Site "https://www.chess.com"]